Workbook

Sheet Estimate Form
J4: Fill this out first:
J6: SYSTEM NAME | K6: Peacock Hill
J7: PROJECT DISCRIPTION | K7: 1" Service Meter
J8: COUNTY | K8: Pierce
J9: ENG. FILE # | K9: 3908
J10: PROJECT TYPE | K10: FALSE
B11: =$K$6 -> Peacock Hill | K11: TRUE
B12: =$K$7 -> 1" Service Meter | J12: TCJA RATE | K12: 0.21
B13: =TODAY() -> 2021-02-11 | J13: WWS OH RATE | K13: 0.32
B14: (Projected Cost Good for 30-Days) | J14: STATE B/O | K14: 0.015
F15: Engineering File # | G15: =K9 -> 3908
D16: *** Construction Materials ***
B17: Unit of Property | C17: Description | D17: Quantity | E17: Unit of Measure | F17: Unit Cost | G17: Total
B18: 103240 | C18: Construction Materials, Pipe, Valves, Fittings, Etc | D18: 1 | E18: LS | F18: ='Materials Worksheet'!G47*(1+K13) -> 0 | G18: =F18*D18 -> 0 | J18: Edit Unit of Property as Needed in All Categories
B19: 103450 | C19: Construction Materials for Services | D19: 1 | E19: LS | F19: ='Materials Worksheet'!G59*(1+K13) -> 1682.086185 | G19: =F19*D19 -> 1682.086185
B20: 103480 | C20: Construction Materials for Hydrants | D20: 1 | E20: LS | F20: ='Materials Worksheet'!G73*(1+K13) -> 0 | G20: 0 | J20: NOTE:
G21: 0 | J21: The 21% Federal Income Tax per the "Tax Cuts & Jobs Act" of 2017 applies to CICA projects ONLY.
G22: =D22*F22 -> 0 | J22: State B&O Tax tax applies to CICA projects only.
D23: Sub-Total | G23: =SUM(G18:G22) -> 1682.086185
D24: Contingency | F24: 0.1 | G24: =G23*F24 -> 168.2086185
D25: Sales Tax | F25: 0.09 | G25: =(G23+G24)*F25 -> 166.5265323 | J25: INVENTORY COST SHEET LINK
D26: SUB Total - Materials | G26: =G23+G24+G25 -> 2016.821335
D27: Rounded Up Value | G27: =ROUNDUP(G26,-2) -> 2100 | K27: Use this button for nearside 1" service installation
D29: *** Construction Labor ***
B30: Unit of Property | C30: Description | D30: Quantity | E30: Unit of Measure | F30: Unit Cost | G30: Total
B31: 103240 | C31: Construction Labor - Watermain | D31: 1 | E31: LS | F31: ='Construction Labor'!G35*(1+K13) -> 0 | G31: =F31*D31 -> 0
B32: 103450 | C32: Construction Labor - Services | D32: 1 | E32: LS | F32: ='Construction Labor'!P35*(1+K13) -> 1584 | G32: =F32*D32 -> 1584
B33: 103480 | C33: Construction Labor - Hydrants | D33: 1 | E33: LS | F33: ='Construction Labor'!Y35*(1+K13) -> 0 | G33: 0
G34: 0
C35: WWSC Engineering | D35: 1 | E35: LS | F35: ='Eng Labor'!H41*(1+K13) -> 336.6 | G35: 336.6
G36: 0
G37: 0
G38: =SUM(G31:G37) -> 1920.6
D39: Contingency | F39: 0.1 | G39: =G38*F39 -> 192.06
D40: Sub-Total - Construction Labor | G40: =G38+G39 -> 2112.66
D41: Rounded Up Value | G41: =ROUNDUP(G40,-2) -> 2200
D43: *** Outside Contractor ***
B44: Unit of Property | C44: Description | D44: Quantity | E44: Unit of Measure | F44: Unit Cost | G44: Total
C45: County Permits (Encroachment) | D45: 1 | E45: LS | F45: =300*(1+K13) -> 396 | G45: =F45*D45 -> 396
C46: Bore tool Rental | D46: 1 | E46: LS | F46: 685 | G46: =F46*D46 -> 685
C47: Hydrogeologist | D47: 1 | E47: LS | G47: 0
C48: Geotechnical Engineer | D48: 1 | E48: LS | G48: 0
C49: Engineering Consultant | D49: 1 | E49: LS | G49: 0
C50: Land Surveyor | D50: 1 | E50: LS | G50: =F50*D50 -> 0
C51: Land Cost | D51: 1 | E51: LS | G51: 0
C52: Additional Insurance | D52: 1 | E52: LS | G52: 0
C53: Bonding | D53: 1 | E53: LS | G53: 0
C54: Sanitary Facility Rental (Portable Toilet) | D54: 1 | E54: LS | F54: ='Construction Labor'!G49*(1+K13) -> 0 | G54: 0
C55: Paving Contractor - Pavement Restoration | D55: 1 | E55: LS | F55: =800*(1+K13) -> 1056 | G55: 1056
C56: Traffic Control Contractor - Flaggers | D56: 1 | E56: LS | F56: ='Construction Labor'!E44*(1+K13) -> 1108.8 | G56: 1108.8
G57: 0
G58: 0
G59: 0
G60: 0
D61: SUB TOTAL | G61: =SUM(G45:G60) -> 3245.8
D62: Contingency | F62: 0.1 | G62: =G61*F62 -> 324.58 | J62: 50% of total project cost | K62: =G70/2 -> 5076.142132
D63: Sub-Total - Outside Contractor | G63: =SUM(G61:G62) -> 3570.38 | J63: total cost of watermains | K63: =G18*(1+F24)*(1+F25) + G31*(1+F39) +( G54+G55+G56+G45+G50)*(1+F62) -> 2816.88
D64: Rounded Up Value | G64: =ROUNDUP(G63,-2) -> 3600
J65: enter footage below
D66: Project Subtotal = | G66: =ROUNDUP(G27+G41+G64,-2) -> 7900 | K66: LF | L66: =K63/J66 ->  | M66: $/LF Pre Tax
D67: =IF(OR(K10,K11),IF(AND(K11,NOT(K10)),"Federal Tax per the TCJA=",IF(AND(K10,NOT(K11)),"Construction OH=",IF(AND(K11,K10),"SELECT ONLY ONE PROJECT TYPE")))) -> Federal Tax per the TCJA= | G67: =IF(OR(K10,K11),IF(AND(K11,NOT(K10)),G66*(1/(1-K12)-1),IF(AND(K10,NOT(K11)),(G66*K13),IF(AND(K11,K10),"WARNING")))) -> 2100
D68: State B&O Tax = | G68: =IF(OR(K10,K11),IF(AND(K11,NOT(K10)),SUM(G66:G67)*(1/(1-K14)-1),IF(AND(K10,NOT(K11)),0,IF(AND(K11,K10),"WARNING")))) -> 152.284264
D70: Projected Funds Required = | G70: =SUM(G66:G69) -> 10152.28426
C72: Assumptions:
C73: 1) This document is intended to forecast approximate construction costs based upon current information and similar projects, and is not
C74: intended to accurately represent actual design or construction components or prices.
C75: 2) Totals are rounded to nearest $100

Sheet Materials Worksheet
C1: ='Estimate Form'!$K$6 -> Peacock Hill
C2: =CONCATENATE('Estimate Form'!$K$8, " County") -> Pierce County | F2: Eng. File # | G2: ='Estimate Form'!$K$9 -> 3908
C3: ='Estimate Form'!K7 -> 1" Service Meter
C4: Engineer's Opinion of Projected Construction Materials Costs
C5: =TODAY() -> 2021-02-11
A9: Unit of Property | B9: Inventory Number | C9: Task - WATERMAIN | D9: Quantity | E9: Units | F9: Unit Cost | G9: Total
F14: 0 | G14: =D14*F14 -> 0
G15: 0
G16: 0
G17: 0
G18: 0
G19: 0
G20: 0
G21: 0
G22: 0
G23: 0
G24: 0
G25: 0
G26: 0
G27: 0
G28: 0
G29: 0
G30: 0
G31: 0
G32: 0
G33: 0
G34: 0
G35: 0
G36: 0
G37: 0
G38: 0
G39: 0
G40: 0
G41: =D41*F41 -> 0
G42: 0
G43: 0
G44: 0
G45: 0
F47: Sub-Total | G47: =SUM(G14:G45) -> 0
A50: Unit of Property | B50: Inventory Number | C50: Task - SERVICES | D50: Quantity | E50: Units | F50: Unit Cost | G50: Total
A53: 103450 | C53: ='Materials Assemblies'!C73 -> 1" Meter Single Service Assembly | D53: 1 | E53: EA | F53: ='Materials Assemblies'!G85 -> 1274.307716 | G53: =D53*F53 -> 1274.307716
G54: 0
G55: 0
G56: 0
G57: 0
F59: Sub-Total | G59: =SUM(G53:G57) -> 1274.307716
A64: Unit of Property | B64: Inventory Number | C64: Task - HYDRANTS | D64: Quantity | E64: Units | F64: Unit Cost | G64: Total
A67: 103480 | C67: Fire Hydrant | D67: 0 | E67: EA | F67: ='Materials Assemblies'!G28 -> 4402.212391 | G67: =D67*F67 -> 0
G68: =D68*F68 -> 0
G69: =D69*F69 -> 0
G70: =D70*F70 -> 0
G71: =D71*F71 -> 0
F73: Sub-Total | G73: =SUM(G67:G71) -> 0

Sheet Materials Assemblies
C1: ='Estimate Form'!$K$6 -> Peacock Hill
C2: =CONCATENATE('Estimate Form'!$K$8, " County") -> Pierce County | F2: Eng. File # | G2: ='Estimate Form'!$K$9 -> 3908
C3: ='Estimate Form'!K7 -> 1" Service Meter
C4: Engineer's Opinion of Projected Construction Materials Costs
C5: =TODAY() -> 2021-02-11
C10: Assembly Items Listed Below
C13: Hydrant Assembly
B14: 60600033 | C14: 6" Dry-Barrel Hydrant | D14: 1 | E14: EA | F14: =[1]sheet1!$E$1587 -> 2619.577997 | G14: =D14*F14 -> 2619.577997 | L14: Temporary Testing Service
B15: 60500031 | C15: 5" Storz Adaptor | D15: 1 | E15: EA | F15: =[1]sheet1!$E$1589 -> 203.6168537 | G15: 203.6168537 | K15: 30800181 | L15: 8 x 1 TAPPING SADDLE | M15: 1 | N15: EA | O15: =[2]sheet1!$E$725 -> 77.7435035 | P15: =M15*O15 -> 77.7435035
B16: 60600081 | C16: 18" Valve Box Riser /w Lid | D16: 1 | E16: EA | F16: =[1]sheet1!$E$1611 -> 50.4891361 | G16: 50.4891361 | K16: 40100255 | L16: 1" CORP STOP VALVE-NO LEAD | M16: 1 | N16: EA | O16: =[2]sheet1!$E$853 -> 93.2677967 | P16: 93.2677967
B17: 60600082 | C17: CI Valve Box Bottom Section | D17: 1 | E17: EA | F17: =[1]sheet1!$E$1608 -> 28.7576471 | G17: 28.7576471 | K17: 60100012 | L17: 1" CL 200 POLY PIPE | M17: 12 | N17: LF | O17: =[2]sheet1!$E$1592 -> 0.6468592 | P17: 7.7623104
B18: 30600194 | C18: 6"x6" Tee, MJxFLG | D18: 1 | E18: EA | F18: =[1]sheet1!$E$785 -> 162.799 | G18: 162.799 | K18: 40100220 | L18: 1" ANGLE STOP VALVE-NO LEAD | M18: 1 | N18: EA | O18: =[2]sheet1!$E$924 -> 63.7342641 | P18: 63.7342641
B19: 30600141 | C19: 6" Ductile Iron Pipe Cl 50 | D19: 12 | E19: LF | F19: =[1]sheet1!$E$673 -> 21.0433873 | G19: 252.5206476 | K19: 100034060 | L19: RES METER BOX w/lid, STANDARD | M19: 1 | N19: EA | O19: =[1]sheet1!$E$1921 -> 37.0564337 | P19: 37.0564337
B20: 30600028 | C20: 6" MEGALUG PK/KIT (DI) | D20: 2 | E20: EA | F20: =[1]sheet1!$E$621 -> 53.4086371 | G20: 106.8172742 | P20: 0
B21: 30800029 | C21: 8" MEGALUG PK/KIT (PVC) | D21: 2 | E21: EA | F21: =[1]sheet1!$E$628 -> 90.7624536 | G21: 181.5249072
B22: 30600030 | C22: 6" FLG BOLT & GSKT KIT | D22: 2 | E22: EA | F22: =[1]sheet1!$E$582 -> 15.431 | G22: 30.862 | O22: Sub-Total | P22: =SUM(P15:P20) -> 279.5643084
B23: 40600285 | C23: 6" MJ x FLG GATE VALVE | D23: 1 | E23: EA | F23: =[1]sheet1!$E$886 -> 747.0494525 | G23: 747.0494525
C24: GRAVEL 1 1/4 minus | D24: 0.5 | E24: CY | F24: 17 | G24: 8.5
B25: 125004816 | C25: Support Blocks | D25: 6 | E25: EA | F25: =[1]sheet1!$E$1966 -> 1.6162458 | G25: 9.6974748
G26: 0
F28: Sub-Total | G28: =SUM(G14:G26) -> 4402.212391
C31: 5/8 x 3/4 Meter Single Service Assembly w/ 1" Service Line | K31: 5/8 x 3/4 Meter Double Service Assembly w/ 1" Service Line
B32: 30800181 | C32: 8 x 1 TAPPING SADDLE | D32: 1 | E32: EA | F32: =[2]sheet1!$E$725 -> 77.7435035 | G32: =D32*F32 -> 77.7435035 | K32: 30800181 | L32: 8 x 1 TAPPING SADDLE | M32: 1 | N32: EA | O32: =[2]sheet1!$E$725 -> 77.7435035 | P32: =M32*O32 -> 77.7435035
B33: 40100255 | C33: 1" CORP STOP VALVE-NO LEAD | D33: 1 | E33: EA | F33: =[2]sheet1!$E$853 -> 93.2677967 | G33: 93.2677967 | K33: 40100255 | L33: 1" CORP STOP VALVE-NO LEAD | M33: 1 | N33: EA | O33: =[2]sheet1!$E$853 -> 93.2677967 | P33: 93.2677967
B34: 60100012 | C34: 1" CL 200 POLY PIPE | D34: 30 | E34: LF | F34: =[2]sheet1!$E$1592 -> 0.6468592 | G34: 19.405776 | K34: 60100012 | L34: 1" CL 200 POLY PIPE | M34: 30 | N34: LF | O34: =[2]sheet1!$E$1592 -> 0.6468592 | P34: 19.405776
B35: 51400155 | C35: LOCATOR WIRE, # 14 | D35: 30 | E35: LF | F35: =[3]sheet1!$E$1551 -> 0.1068574 | G35: 3.205722 | K35: 51400155 | L35: LOCATOR WIRE, # 14 | M35: 30 | N35: LF | O35: =[3]sheet1!$E$1522 -> 2.9612258 | P35: 88.836774
C36: Meter Setter - Ford VH72-12W-11-44-NL | D36: 1 | E36: EA | F36: 185 | G36: 185 | L36: Meter Setter - Ford VH72-12W-11-44-NL | M36: 2 | N36: EA | O36: 185 | P36: 370
B37: 60100021 | C37: 1" PJ x MIPT POLY ADAPTOR-NO | D37: 1 | E37: EA | F37: =[2]sheet1!$E$1558 -> 35.9249124 | G37: 35.9249124 | L37: 1" x 18" BRASS NIPPLE | M37: 2 | N37: EA | O37: 60 | P37: 120
C38: 1" x 18" BRASS NIPPLE | D38: 1 | E38: EA | F38: 60 | G38: 60 | K38: 100034060 | L38: RES METER BOX w/lid, STANDARD | M38: 2 | N38: EA | O38: =[1]sheet1!$E$1921 -> 37.0564337 | P38: 74.1128674
B39: 100034060 | C39: RES METER BOX w/lid, STANDARD | D39: 1 | E39: EA | F39: =[1]sheet1!$E$1921 -> 37.0564337 | G39: 37.0564337 | L39: 2x4 Marker | M39: 2 | N39: EA | O39: 6 | P39: 12
C40: 2x4 Marker | D40: 1 | E40: EA | F40: 6 | G40: 6 | K40: 60100021 | L40: 1" PJ x MIPT POLY ADAPTOR-NO | M40: 1 | N40: EA | O40: =[2]sheet1!$E$1558 -> 35.9249124 | P40: 35.9249124
G41: 0 | K41: 80100190 | L41: 1" BRASS TEE | M41: 1 | N41: EA | O41: =[2]sheet1!$E$1782 -> 10.573212 | P41: 10.573212
G42: 0 | K42: 80100090 | L42: 1" 90 BRASS ELBOW | M42: 3 | N42: EA | O42: =[2]sheet1!$E$1734 -> 7.2813026 | P42: 21.8439078
G43: 0 | L43: 1" x 18" BRASS NIPPLE | M43: 2 | N43: EA | O43: 60 | P43: 120
P44: 0
F45: Sub-Total | G45: =SUM(G32:G43) -> 517.6041443
O47: Sub-Total | P47: =SUM(P32:P44) -> 1043.70875
C52: 5/8 x 3/4 Meter Single Service Assembly w/ 1½ Service Line | K52: 5/8 x 3/4 Meter Double Service Assembly w/ 1½" Service Line
B53: 30800183 | C53: 8 x 2 TAPPING SADDLE | D53: 1 | E53: EA | F53: =[2]sheet1!$E$731 -> 128.3676537 | G53: =D53*F53 -> 128.3676537 | K53: 30800183 | L53: 8 x 2 TAPPING SADDLE | M53: 1 | N53: EA | O53: =[2]sheet1!$E$731 -> 128.3676537 | P53: =M53*O53 -> 128.3676537 | R53: 3/4 x 3/4 Meter Double Service Assembly w/ 1½" Service Line
B54: 40200255 | C54: 2" CORP STOP VALVE-NO LEAD | D54: 1 | E54: EA | F54: =[2]sheet1!$E$852 -> 288.0516444 | G54: 288.0516444 | K54: 40200255 | L54: 2" CORP STOP VALVE-NO LEAD | M54: 1 | N54: EA | O54: =[2]sheet1!$E$852 -> 288.0516444 | P54: 288.0516444 | R54: 30800183 | S54: 8 x 2 TAPPING SADDLE | T54: 1 | U54: EA | V54: 128.37 | W54: 128.37
B55: 60112012 | C55: 1-1-2" CL 200 POLY PIPE | D55: 30 | E55: LF | F55: =[2]sheet1!$E$1594 -> 2.23236 | G55: 66.9708 | K55: 60112012 | L55: 1-1-2" CL 200 POLY PIPE | M55: 30 | N55: LF | O55: =[2]sheet1!$E$1594 -> 2.23236 | P55: 66.9708 | R55: 40200255 | S55: 2" CORP STOP VALVE-NO LEAD | T55: 1 | U55: EA | V55: 288.05 | W55: 288.05
B56: 51400155 | C56: LOCATOR WIRE, # 14 | D56: 30 | E56: LF | F56: =[3]sheet1!$E$1551 -> 0.1068574 | G56: 3.205722 | K56: 51400155 | L56: LOCATOR WIRE, # 14 | M56: 30 | N56: LF | O56: =[3]sheet1!$E$1522 -> 2.9612258 | P56: 88.836774 | R56: 60112012 | S56: 1-1-2" CL 200 POLY PIPE | T56: 30 | U56: LF | V56: 2.23 | W56: 66.97
C57: Meter Setter - Ford VH72-12W-11-66-NL | D57: 1 | E57: EA | F57: 185 | G57: 185 | L57: Meter Setter - Ford VH72-12W-11-66-NL | M57: 2 | N57: EA | O57: 185 | P57: 370 | R57: 51400155 | S57: LOCATOR WIRE, # 14 | T57: 30 | U57: LF | V57: 2.96 | W57: 88.84
B58: 60112021 | C58: 1-1/2" PJ x MIPT POLY ADAPTOR | D58: 1 | E58: EA | F58: =[2]sheet1!$E$1560 -> 87.67408 | G58: 87.67408 | L58: 1½" x 18" BRASS NIPPLE | M58: 2 | N58: EA | O58: 60 | P58: 120 | S58: Meter Setter - Ford VH73-12W-11-66-NL | T58: 2 | U58: EA | V58: 220 | W58: 440
C59: 1½" x 18" BRASS NIPPLE | D59: 1 | E59: EA | F59: 60 | G59: 60 | K59: 100034060 | L59: RES METER BOX w/lid, STANDARD | M59: 2 | N59: EA | O59: =[1]sheet1!$E$1921 -> 37.0564337 | P59: 74.1128674 | S59: 1½" x 18" BRASS NIPPLE | T59: 2 | U59: EA | V59: 60 | W59: 120
B60: 100034060 | C60: RES METER BOX w/lid, STANDARD | D60: 1 | E60: EA | F60: =[1]sheet1!$E$1921 -> 37.0564337 | G60: 37.0564337 | L60: 2x4 Marker | M60: 2 | N60: EA | O60: 6 | P60: 12 | R60: 100034060 | S60: RES METER BOX w/lid, STANDARD | T60: 2 | U60: EA | V60: 37.06 | W60: 74.11
C61: 2x4 Marker | D61: 1 | E61: EA | F61: 6 | G61: 6 | K61: 60112021 | L61: 1-1/2" PJ x MIPT POLY ADAPTOR | M61: 2 | N61: EA | O61: =[2]sheet1!$E$1560 -> 87.67408 | P61: 175.34816 | S61: 2x4 Marker | T61: 2 | U61: EA | V61: 6 | W61: 12
C62: 2"x1½" Brass Bell Reducer | D62: 1 | E62: EA | F62: 45 | G62: 45 | K62: 80112190 | L62: 1-1/2" BRASS TEE | M62: 1 | N62: EA | O62: =[2]sheet1!$E$1783 -> 22.009 | P62: 22.009 | R62: 60112021 | S62: 1-1/2" PJ x MIPT POLY ADAPTOR | T62: 2 | U62: EA | V62: 87.67 | W62: 175.35
G63: 0 | L63: 1½" 90 BRASS ELBOW | M63: 3 | N63: EA | O63: 22 | P63: 66 | R63: 80112190 | S63: 1-1/2" BRASS TEE | T63: 1 | U63: EA | V63: 22.01 | W63: 22.01
G64: 0 | K64: 80100134 | L64: 1½" x 18" BRASS NIPPLE | M64: 2 | N64: EA | O64: 60 | P64: 120 | S64: 1½" 90 BRASS ELBOW | T64: 3 | U64: EA | V64: 22 | W64: 66
P65: 0 | R65: 80100134 | S65: 1½" x 18" BRASS NIPPLE | T65: 2 | U65: EA | V65: 60 | W65: 120
F66: Sub-Total | G66: =SUM(G53:G64) -> 907.3263338 | W66: $-
O68: Sub-Total | P68: =SUM(P53:P65) -> 1531.696899
V69: Sub-Total | W69: 1601.7
C73: 1" Meter Single Service Assembly | K73: 1½" Meter Single Service Assembly
B74: 30800183 | C74: 8 x 2 TAPPING SADDLE | D74: 1 | E74: EA | F74: =[3]sheet1!$F$731 -> 124.228 | G74: =D74*F74 -> 124.228 | K74: 30800183 | L74: 8 x 2 TAPPING SADDLE | M74: 1 | N74: EA | O74: =[3]sheet1!$F$731 -> 124.228 | P74: =M74*O74 -> 124.228
B75: 40200255 | C75: 2" CORP STOP VALVE-NO LEAD | D75: 1 | E75: EA | F75: =[3]sheet1!$F$852 -> 268.268 | G75: 268.268 | K75: 40200255 | L75: 2" CORP STOP VALVE-NO LEAD | M75: 1 | N75: EA | O75: =[3]sheet1!$F$852 -> 268.268 | P75: 268.268
B76: 60112012 | C76: 1-1-2" CL 200 POLY PIPE | D76: 30 | E76: LF | F76: =[2]sheet1!$E$1594 -> 2.23236 | G76: 66.9708 | K76: 60200012 | L76: 2" CL 200 POLY PIPE | M76: 30 | N76: LF | O76: =[3]sheet1!$F$1595 -> 3.068 | P76: 92.04
B77: 51400155 | C77: LOCATOR WIRE, # 14 | D77: 30 | E77: LF | F77: =[3]sheet1!$E$1551 -> 0.1068574 | G77: 3.205722 | K77: 51400155 | L77: LOCATOR WIRE, # 14 | M77: 30 | N77: LF | O77: =[3]sheet1!$E$1551 -> 0.1068574 | P77: 3.205722
C78: Meter Setter - Ford VH74-12W-11-66-NL | D78: 1 | E78: EA | F78: 296.14 | G78: 296.14 | L78: Meter Setter - Ford VBHH76-18HBHC-11-77 | M78: 1 | N78: EA | O78: 1672 | P78: 1672
C79: 1½" x 18" BRASS NIPPLE | D79: 1 | E79: EA | F79: 60 | G79: 60 | L79: 2" x 18" BRASS NIPPLE | M79: 1 | N79: EA | O79: 41.33 | P79: 41.33
B80: 100034060 | C80: RES METER BOX w/lid, STANDARD | D80: 1 | E80: EA | F80: =[1]sheet1!$E$1921 -> 37.0564337 | G80: =D80*F80 -> 37.0564337 | K80: 80200120 | L80: 2" x CLOSE BRASS NIPPLE | M80: 2 | N80: EA | O80: =[3]sheet1!$F$1767 -> 12.61 | P80: 25.22
B81: 100100158 | C81: 1" METER w/HRE REG+ERT | D81: 1 | E81: EA | F81: =[3]sheet1!$E$1912 -> 367.43876 | G81: =D81*F81 -> 367.43876 | L81: 2" Brass Elbow | M81: 2 | N81: EA | O81: 14.23 | P81: 28.46
C82: 2x4 Marker | D82: 1 | E82: EA | F82: 6 | G82: =D82*F82 -> 6 | K82: 100034060 | L82: RES METER BOX w/lid, STANDARD | M82: 1 | N82: EA | O82: =[1]sheet1!$E$1921 -> 37.0564337 | P82: =M82*O82 -> 37.0564337
C83: 2"x1½" Brass Bell Reducer | D83: 1 | E83: EA | F83: 45 | G83: =D83*F83 -> 45 | L83: 2x4 Marker | M83: 1 | N83: EA | O83: 6 | P83: =M83*O83 -> 6
F85: Sub-Total | G85: =SUM(G74:G83) -> 1274.307716 | O85: Sub-Total | P85: =SUM(P74:P83) -> 2297.808156
C89: 2" Blowoff Assembly | J89: Wellhead Enclosure Assembly
C90: 2" THREADED GATE AWWA | D90: 1 | E90: EA | F90: =[1]sheet1!$E$875 -> 432.419 | G90: =D90*F90 -> 432.419 | K90: Well 2.5 X 8
C91: 8 x 2 TAPPING SADDLE | D91: 1 | E91: EA | F91: =[1]sheet1!$E$731 -> 128.3676537 | G91: 128.3676537 | J91: Unit of Prop | K91: Inv No
C92: 18" VALVE BOX RISER w/LID | D92: 1 | E92: EA | F92: =[1]sheet1!$E$1611 -> 50.4891361 | G92: 50.4891361 | J92: 103240 | L92: 2.5" sch 40 galv pipe (21ft lngths) | M92: 12 | N92: EA | O92: =4.75*21 -> 99.75 | P92: =O92*M92 -> 1197
C93: VALVE BOX BOTTOM CI | D93: 1 | E93: EA | F93: =[1]sheet1!$E$1608 -> 28.7576471 | G93: 28.7576471 | J93: 103240 | L93: 2.5" wye fitting | M93: 0 | N93: EA | O93: 550 | P93: =O93*M93 -> 0
C94: 2 x 6 GALV NIPPLE | D94: 4 | E94: EA | F94: =[1]sheet1!$E$425 -> 6.2280985 | G94: 24.912394 | J94: 103240 | L94: 2.5" collumn check valve | M94: 2 | N94: EA | O94: 180 | P94: 360
C95: 2" GALVANIZED PIPE | D95: 6 | E95: LF | F95: =[1]sheet1!$E$463 -> 3.862365 | G95: 23.17419 | J95: 103240 | L95: 2.5 x 8" spiders | M95: 2 | N95: EA | O95: 10 | P95: 20
C96: 2" GALV 90 ELBOW | D96: 4 | E96: EA | F96: =[1]sheet1!$E$290 -> 8.6599656 | G96: 34.6398624 | J96: 103240 | L96: 2.5" x 3" bell red galv | M96: 1 | N96: EA | O96: 22 | P96: 22
C97: 2" PVC ADAPTOR FIP | D97: 2 | E97: EA | F97: =[1]sheet1!$E$18 -> 2.10769 | G97: 4.21538 | J97: 103240 | L97: 2.5" Pipe Coupling | M97: 12 | N97: EA | O97: 11 | P97: 132
C98: 2" PVC PIPE, CL 200 | D98: 20 | E98: LF | F98: =[1]sheet1!$E$137 -> 0.9117654 | G98: 18.235308 | J98: 103240 | L98: #6-4 flat jacket subcable | M98: 300 | N98: FT | O98: 1.9 | P98: 570
C99: BEDDING SAND | D99: 2.5 | E99: CY | F99: =[3]sheet1!$E$1971 -> 7.21682 | G99: 18.04205 | J99: 103240 | L99: sounding tube | M99: 260 | N99: FT | O99: 1.09 | P99: 283.4
J100: 103240 | L100: sounding tube screen | M100: 20 | N100: FT | O100: 1.84 | P100: 36.8
F101: Sub-Total | G101: =SUM(G90:G100) -> 763.2526213 | J101: 103240 | L101: assorted fittings | M101: 1 | N101: EA | O101: 100 | P101: 100
J102: 103240 | L102: Well Seal | M102: 1 | N102: EA | O102: 500 | P102: 500
J103: 103240 | L103: Wellhead Enclosure (Hubbel) | M103: 1 | N103: EA | O103: 2900 | P103: 2900
J104: 103240 | L104: 2.5" Ball Valve | M104: 2 | N104: EA | O104: 136 | P104: 272
C105: 2" Air/Vac Assembly | J105: 103240 | L105: 1" duck bill syle check valve | M105: 1 | N105: ea | O105: 40 | P105: 40
C106: 2" THREADED GATE AWWA | D106: 1 | E106: EA | F106: =[1]sheet1!$E$875 -> 432.419 | G106: =D106*F106 -> 432.419 | L106: Pad | M106: 1 | N106: ea | O106: 1500 | P106: 1500
C107: 8 x 2 TAPPING SADDLE | D107: 1 | E107: EA | F107: =[1]sheet1!$E$731 -> 128.3676537 | G107: 128.3676537
C108: 18" VALVE BOX RISER w/LID | D108: 1 | E108: EA | F108: =[1]sheet1!$E$1611 -> 50.4891361 | G108: 50.4891361
C109: VALVE BOX BOTTOM CI | D109: 1 | E109: EA | F109: =[1]sheet1!$E$1608 -> 28.7576471 | G109: 28.7576471 | O109: Sub-Total | P109: =SUM(P92:P106) -> 7933.2
C110: 2 x 6 GALV NIPPLE | D110: 7 | E110: EA | F110: =[1]sheet1!$E$425 -> 6.2280985 | G110: 43.5966895
C111: 2" AIR/VAC VALVE, ARI #D-040 | D111: 1 | E111: EA | F111: =[1]sheet1!$E$796 -> 451.6994898 | G111: 451.6994898
C112: 2" GALVANIZED PIPE | D112: 7 | E112: LF | F112: =[1]sheet1!$E$463 -> 3.862365 | G112: 27.036555
C113: 2" GALV 90 ELBOW | D113: 4 | E113: EA | F113: =[1]sheet1!$E$290 -> 8.6599656 | G113: 34.6398624
C114: 2" PVC ADAPTOR FIP | D114: 2 | E114: EA | F114: =[1]sheet1!$E$18 -> 2.10769 | G114: 4.21538 | J114: Chlorine Analyzer with Cell Modem
C115: 2" GALV 180 ELBOW | D115: 1 | E115: EA | F115: =[1]sheet1!$E$299 -> 89.8586 | G115: 89.8586
C116: 2" ENVIRO STRAINER-NO LEAD | D116: 1 | E116: EA | F116: =[1]sheet1!$E$865 -> 49.76829 | G116: 49.76829 | J116: Unit of Prop | K116: Inv No
C117: 2" GALV CAP | D117: 1 | E117: EA | F117: =[1]sheet1!$E$235 -> 4.1318537 | G117: 4.1318537 | J117: 103320 | L117: Kuntze Chlorine Analyzer w/ gateway | M117: 1 | N117: EA | O117: 6100 | P117: =O117*M117 -> 6100
C118: 2" GALV REDUCING TEE | D118: 2 | E118: EA | F118: =[1]sheet1!$E$503 -> 11.2657688 | G118: 22.5315376 | J118: 103760 | L118: CradlePoint Cell Modem | M118: 1 | N118: EA | O118: 550 | P118: =O118*M118 -> 550
C119: 3/4" ANGLE STOP VALVE-NO LEAD | D119: 1 | E119: EA | F119: =[1]sheet1!$E$923 -> 43.0221831 | G119: 43.0221831 | J119: 103760 | L119: CA-400 NM-SMA-20 Cable | M119: 1 | N119: EA | O119: 65 | P119: 65
C120: 3/4 x 18 GALV NIPPLE | D120: 2 | E120: EA | F120: =[1]sheet1!$E$375 -> 8.0402361 | G120: 16.0804722 | J120: 103760 | L120: Gradle Point High Gain Antennae | M120: 1 | N120: EA | O120: 135 | P120: 135
C121: 3/4 x 6 GALV NIPPLE | D121: 1 | E121: EA | F121: =[1]sheet1!$E$371 -> 2.2944987 | G121: 2.2944987 | J121: 103760 | L121: 50 ft CAT5 Ethernet Cable | M121: 1 | N121: EA | O121: 15 | P121: 15
C122: 3/4" GALV 90 ELBOW | D122: 1 | E122: EA | F122: =[1]sheet1!$E$286 -> 1.4540292 | G122: 1.4540292 | J122: 103760 | L122: mounting hardware | M122: 1 | N122: EA | O122: 30 | P122: 30
C123: EXTRA LG METER BOX LID, STD | D123: 1 | E123: EA | F123: =[1]sheet1!$E$1930 -> 239.2835705 | G123: 239.2835705 | L123: DPD Colorimeter | M123: 1 | N123: EA | O123: 463 | P123: 463
C124: 1 1/2 x 6 GALV NIPPLE | D124: 3 | E124: EA | F124: =[1]sheet1!$E$413 -> 4.6758309 | G124: 14.0274927
C125: 1-1/2" GALV 90 ELBOW | D125: 1 | E125: EA | F125: =[1]sheet1!$E$289 -> 6.4831 | G125: 6.4831 | O125: Sub-Total | P125: =SUM(P117:P123) -> 7358
C126: 1-1/2" GALV UNION | D126: 1 | E126: EA | F126: =[1]sheet1!$E$514 -> 12.4946588 | G126: 12.4946588
C127: CONCRETE VALVE BOX MARKER | D127: 1 | E127: EA | F127: =[1]sheet1!$E$514 -> 12.4946588 | G127: 12.4946588
C128: 2" PVC PIPE, CL 200 | D128: 20 | E128: LF | F128: =[1]sheet1!$E$137 -> 0.9117654 | G128: 18.235308
C129: BLOCKS 2/8 4/8 4/16 - AVG | D129: 3 | E129: EA | F129: =[1]sheet1!$E$1966 -> 1.6162458 | G129: 4.8487374
F131: Sub-Total | G131: =SUM(G106:G129) -> 1738.230404
C136: 2.5" Pump Suspension Assembly | D136: Enter Pump Suction Depth: | G136: 130 | H136: FT
B137: 40212240 | C137: 2-1/2" INLINE CHK VALVE (DUCTI | D137: =ROUND($G$136/80,0) -> 2 | E137: EA | F137: =[3]sheet1!$F$829 -> 287.885 | G137: =D137*F137 -> 575.77
B138: 70822171 | C138: 8"x 2-1/2" SPIDER | D138: =ROUND($G$136/80,0) -> 2 | E138: EA | F138: =[3]sheet1!$F$1685 -> 11.934 | G138: 23.868
B139: 20212190 | C139: 2-1/2" GALV TEE | D139: 1 | E139: EA | F139: =[3]sheet1!$F$491 -> 36.387 | G139: 36.387
B140: 20212140 | C140: 2-1/2" GALVANIZED PIPE | D140: =G136 -> 130 | E140: FT | F140: =[3]sheet1!$F$464 -> 9.009 | G140: 1171.17
B141: 20212070 | C141: 2-1/2" GALV COUPLING | D141: =ROUND(G136/20,0) -> 7 | E141: EA | F141: =[3]sheet1!$F$248 -> 18.668 | G141: 130.676
B142: 70100156 | C142: 1" SCH 80 SOUNDING TUBE | D142: =G136 -> 130 | E142: FT | F142: =[3]sheet1!$F$1673 -> 2.1632 | G142: 281.216
B143: 60038100 | C143: 3/8" OD PE TUBING | D143: =G136 -> 130 | E143: FT | F143: =[3]sheet1!$F$1603 -> 0.351 | G143: 45.63
F145: Sub-Total | G145: =SUM(G137:G143) -> 2264.717

Sheet Construction Labor
D1: ='Estimate Form'!$K$6 -> Peacock Hill
D2: =CONCATENATE('Estimate Form'!$K$8, " County") -> Pierce County | H2: Eng. File # | I2: ='Estimate Form'!$K$9 -> 3908
D3: ='Estimate Form'!$K$7 -> 1" Service Meter
D4: Engineer's Opinion of Projected Construction Materials Costs
D5: =TODAY() -> 2021-02-11
A7: WWS Construction Crew for CICA Projects - Watermain | J7: WWS Construction Crew for CICA Projects - Services | S7: WWS Construction Crew for CICA Projects - Hydrants
F9: Rate | G9: Sub-Total | O9: Rate | P9: Sub-Total | X9: Rate | Y9: Sub-Total
A10: 1 Man & Vac Truck | E10: HRS | F10: 125 | G10: =D10*F10 -> 0 | J10: 1 Man & Vac Truck | N10: HRS | O10: 125 | P10: =M10*O10 -> 0 | S10: 1 Man & Vac Truck | W10: HRS | X10: 125 | Y10: =V10*X10 -> 0
A11: 1 Man & Boom Truck | E11: HRS | F11: 125 | G11: 0 | J11: 1 Man & Boom Truck | N11: HRS | O11: 125 | P11: 0 | S11: 1 Man & Boom Truck | W11: HRS | X11: 125 | Y11: 0
A12: 1 Man & Backhoe - Trench | E12: HRS | F12: 125 | G12: 0 | J12: 1 Man & Backhoe - Trench | N12: HRS | O12: 125 | P12: 0 | S12: 1 Man & Backhoe - Trench | W12: HRS | X12: 125 | Y12: 0
A13: 1 Man & Backhoe - Comp | E13: HRS | F13: 125 | G13: 0 | J13: 1 Man & Backhoe - Comp | N13: HRS | O13: 125 | P13: 0 | S13: 1 Man & Backhoe - Comp | W13: HRS | X13: 125 | Y13: 0
A14: 1 Man & Truck | E14: HRS | F14: 75 | G14: 0 | J14: 1 Man & Truck | N14: HRS | O14: 75 | P14: 0 | S14: 1 Man & Truck | W14: HRS | X14: 75 | Y14: 0
A15: 2 Men & Truck | E15: HRS | F15: 150 | G15: 0 | J15: 2 Men & Truck | N15: HRS | O15: 150 | P15: 0 | S15: 2 Men & Truck | W15: HRS | X15: 150 | Y15: 0
A16: 1 Electrician & Truck | E16: HRS | F16: 101 | G16: 0 | J16: 1 Electrician & Truck | N16: HRS | O16: 101 | P16: 0 | S16: 1 Electrician & Truck | W16: HRS | X16: 101 | Y16: 0
A17: 2 Electricians & Truck | E17: HRS | F17: 202 | G17: 0 | J17: 2 Electricians & Truck | N17: HRS | O17: 202 | P17: 0 | S17: 2 Electricians & Truck | W17: HRS | X17: 202 | Y17: 0
G18: 0 | P18: 0 | Y18: 0
F20: Total | G20: =SUM(G10:G18) -> 0 | O20: Total | P20: =SUM(P10:P18) -> 0 | X20: Total | Y20: =SUM(Y10:Y18) -> 0
A22: WWS Construction Crew for WWS Capital Projects - Mains | J22: WWS Construction Crew for WWS Capital Projects - Services | S22: WWS Construction Crew for WWS Capital Projects -Hydrants
F24: Rate | G24: Sub-Total | O24: Rate | P24: Sub-Total | X24: Rate | Y24: Sub-Total
A25: 1 Man & Vac Truck | E25: HRS | F25: 75 | G25: =D25*F25 -> 0 | J25: 1 Man & Vac Truck | N25: HRS | O25: 75 | P25: =M25*O25 -> 0 | S25: 1 Man & Vac Truck | W25: HRS | X25: 75 | Y25: =V25*X25 -> 0
A26: 1 Man & Boom Truck | E26: HRS | F26: 75 | G26: =D26*F26 -> 0 | J26: 1 Man & Boom Truck | N26: HRS | O26: 75 | P26: =M26*O26 -> 0 | S26: 1 Man & Boom Truck | W26: HRS | X26: 75 | Y26: =V26*X26 -> 0
A27: 1 Man & Backhoe - Trench | E27: HRS | F27: 75 | G27: =D27*F27 -> 0 | J27: 1 Man & Backhoe - Trench | M27: 8 | N27: HRS | O27: 75 | P27: =M27*O27 -> 600 | S27: 1 Man & Backhoe - Trench | W27: HRS | X27: 75 | Y27: =V27*X27 -> 0
A28: 1 Man & Backhoe - Comp | E28: HRS | F28: 75 | G28: 0 | J28: 1 Man & Backhoe - Comp | N28: HRS | O28: 75 | P28: 0 | S28: 1 Man & Backhoe - Comp | W28: HRS | X28: 75 | Y28: 0
A29: 1 Man & Truck | E29: HRS | F29: 75 | G29: 0 | J29: 1 Man & Truck | M29: 8 | N29: HRS | O29: 75 | P29: 600 | S29: 1 Man & Truck | W29: HRS | X29: 75 | Y29: 0
A30: 2 Men & Truck | E30: HRS | F30: 150 | G30: 0 | J30: 2 Men & Truck | N30: HRS | O30: 150 | P30: 0 | S30: 2 Men & Truck | W30: HRS | X30: 150 | Y30: 0
A31: 1 Electrician & Truck | E31: HRS | F31: 80 | G31: 0 | J31: 1 Electrician & Truck | N31: HRS | O31: 80 | P31: 0 | S31: 1 Electrician & Truck | W31: HRS | X31: 80 | Y31: 0
A32: 2 Electricians & Truck | E32: HRS | F32: 160 | G32: 0 | J32: 2 Electricians & Truck | N32: HRS | O32: 160 | P32: 0 | S32: 2 Electricians & Truck | W32: HRS | X32: 160 | Y32: 0
G33: 0 | P33: 0 | Y33: 0
F35: Total | G35: =SUM(G25:G33) -> 0 | O35: Total | P35: =SUM(P25:P33) -> 1200 | X35: Total | Y35: =SUM(Y25:Y33) -> 0
A37: Outside Contractor - No Pilot Car
A39: 1-Flagger | C39: HRS | D39: 30 | E39: =B39*D39 -> 0
A40: 2-Flaggers | C40: HRS | D40: 60 | E40: =B40*D40 -> 0
A41: Signs | B41: 8 | C41: DAYS | D41: 105 | E41: =B41*D41 -> 840
A42: Other | C42: LS | E42: =B42*D42 -> 0 | F42: (RCE TRAFFIC CONTROL CUTSHEET)
D44: Sub-total | E44: =SUM(E39:E42) -> 840
A47: Sanitary Facility Rental (Portable Toilet)
D49: Days | F49: 75 | G49: =C49*F49 -> 0

Sheet Eng Labor
D1: ='Estimate Form'!$K$6 -> Peacock Hill | G1: Eng. File # | H1: ='Estimate Form'!$K$9 -> 3908
D2: =CONCATENATE('Estimate Form'!$K$8, " County") -> Pierce County
D3: ='Estimate Form'!$K$7 -> 1" Service Meter
D4: Engineer's Opinion of Projected Construction Materials Costs
D5: =TODAY() -> 2021-02-11
F8: Employee
D9: Task | E9: Hours | F9: Classification | G9: Rate | H9: Total
D11: Facility Design
D12: Project Setup | E12: 1 | F12: Engineer | G12: 85 | H12: =E12*G12 -> 85
D13: Route Topo | F13: Engineer | G13: 85 | H13: =E13*G13 -> 0
D14: Develop Base Drawings from Topo Info | F14: Engineer | G14: 85 | H14: =E14*G14 -> 0
D15: Design & Draft Watermain Construction Documents | F15: Engineer | G15: 85 | H15: 0
D17: Sub-Total | E17: =SUM(E12:E16) -> 1 | H17: =SUM(H12:H16) -> 85
D19: Revisions per Peer Review Comments
D20: P.E. Peer Review | F20: Principle Eng | G20: 115 | H20: =E20*G20 -> 0
D21: Revisions to Construction Documents per Peer Review Comments | F21: Engineer | G21: 85 | H21: 0
D22: Coping & Re-Submittal of Project Report & Construction Documents | F22: Clerical | G22: 60 | H22: 0
D24: Sub-Total | E24: =SUM(E20:E23) -> 0 | H24: =SUM(H20:H23) -> 0
D26: Construction
D27: Pre-Construction Conference with Engineering & Contractor | E27: 1 | F27: Engineer | G27: 85 | H27: =E27*G27 -> 85
D28: Construction Inspection & Pressure Test | F28: Engineer | G28: 85 | H28: =E28*G28 -> 0
D30: Sub-Total | E30: =SUM(E27:E29) -> 1 | H30: =SUM(H27:H29) -> 85
D32: Record Documents
D33: As-Built Drawings & Testing Validations along with Project Certification Document Preparation | F33: Engineer | G33: 85 | H33: =E33*G33 -> 0
D34: P.E. Project Certification | F34: Principle Eng | G34: =G20 -> 115 | H34: 0
D35: Updating Base Maps & Site Piping | E35: 1 | F35: Engineer | G35: =G21 -> 85 | H35: 85
D36: Coping, Binding & Submittal of Project Certification to File & Rosario | F36: Clerical | G36: 60 | H36: 0
D38: Sub Total | E38: =SUM(E33:E37) -> 1 | H38: =SUM(H33:H37) -> 85
D41: Projected Total Hours | E41: =E17+E24+E30+E38 -> 3 | H41: =H17+H24+H30+H38 -> 255

Sheet Hyd Model Const
D4: Task | E4: Hours | F4: Rate | G4: Total
D5: Hydraulic Model Construction
D6: Data Collection of Preston's Source Facilities & Distribution System | E6: 1
D7: Distribution Pipes set-up in ACAD for importing into a GIS Shape File | E7: 2
D8: Distribution Pipes conversion ACAD to GIS Shape File | E8: 1
D9: Distribution Pipes - Import GIS Shape File, Create Junctions (Nodes) in Preston's Model | E9: 1
D10: Junction (Node) elevation assignment | E10: 1
D11: Preston Industrial Source of Supply Construction in the Model | E11: 4
D12: Load Model with Preston Industrial Park ERU's | E12: 1
D13: Calc Preston's Peak Day Diurnal Curve & Assign to Junctions w/ ERU's Loaded | E13: 4
D14: Run & Perform QA/QC checks & make any necessary refinements | E14: 4
D16: Sub-Total | E16: =SUM(E6:E12) -> 11 | G16: =E16*F16 -> 0
D18: Hydraulic Model Scenario & Report
D19: Setup & Run Hydraulic Model Scenario for MDD & PHD Meeting DOH Requirements | E19: 2
D20: Setup & Run Hydraulic Model Scenario for Fire Flow Analysis | E20: 2
D21: Prepare Hydraulic Model Narrative (Report) for DOH Submittal | E21: 4
D22: P.E. Peer Review | E22: 1
D23: Edit Project Report per Peer Review | E23: 1
D24: Final P.E. Peer Review for submittal | E24: 0.5
D25: Coping, Binding & of Project Report for DOH Submittal | E25: 1
D27: Sub-Total | E27: =SUM(E19:E25) -> 11.5 | G27: =E27*F27 -> 0
D31: Sub-Total | E31: =E16+E27 -> 22.5 | F31: 95 | G31: =E31*F31 -> 2137.5
D32: Department of Health Office of Drinking Water Review Fee | G32: 811
D33: Projected Total Fees: | G33: =SUM(G31:G32) -> 2948.5
D35: Notes:
D36: 1) This document is intended to forecast approximate Engineering fees based upon current information and similar projects, with
D37: billing on an hourly basis. Final project fees could vary from the projected fees shown.

Sheet Consolidation Records Migration
B5: Engineering Staff Hours to Consolidate Sea Cliff Records into Pecock Hill
D8: Empolyee
B9: Task | C9: Hours | D9: Classification
B10: Update System History | C10: 0.25 | D10: Engineer
B11: Site Facility Address Update | C11: 0.25 | D11: Clerical
B12: Source of Supply Inventory drawing | C12: 4 | D12: Engineer
B13: Update Connection Summary | C13: 4 | D13: Clerical
B14: Document Draw Records Consolidation | C14: 0.5 | D14: Clerical
B15: Sattin System Customer Migration to Aspinwall | C15: 1 | D15: Clerical
B16: System's Owned & Managed List Update | C16: 0.5 | D16: Clerical
B17: CMP Revisions for consolidated System - Site Selection & rotation | C17: 1 | D17: Engineer
B18: CMP Revisions for consolidated System - CMP Map Update | C18: 2 | D18: Engineer
B19: Coliform Monitoring Schedule Updated - WQ | C19: 0.25 | D19: Clerical
B20: Chemical Contaminants Monitoring Schedule Update - WQ | C20: 0.25 | D20: Clerical
B21: Nitrate Monitoring Schedule Update - WQ | C21: 0.25 | D21: Clerical
B22: Lead & Cooper Schedule Update - WQ | C22: 0.5 | D22: Clerical
B23: WQ Records Merge | C23: 0.25 | D23: Clerical
B24: Wellhead Meter Reading Forms merge | C24: 0.5 | D24: Clerical
B25: Wellhead Protection Records Merge | C25: 1 | D25: Engineer
B26: Sanitary Survey Action Items merge | C26: 2 | D26: Clerical
B29: Total | C29: =SUM(C10:C28) -> 18.5
